[Event "4th Tata Steel India Blitz Women 2022"]
[Site "Kolkota"]
[Date "2022.12.04"]
[Round "12.2"]
[White "Dzagnidze, Nana"]
[Black "Kiolbasa, Oliwia"]
[Result "1-0"]
[ECO "A13"]
[WhiteElo "2517"]
[BlackElo "2406"]
[Annotator "TA"]
[PlyCount "67"]
[EventDate "2022.11.29"]
[EventType "tourn"]
[EventCountry "IND"]
[SourceTitle "playchess.com"]
[Source "ChessBase"]
[SourceQuality "1"]
[TimeControl "180+2"]

{[%evp 9,67,20,25,0,6,0,0,6,10,9,19,8,36,36,34,40,31,29,76,75,114,67,47,58,106,58,56,68,58,41,51,52,57,60,63,45,72,79,108,122,112,66,175,152,262,243,244,119,747,748,739,692,879,817,1419,954,1466,1007,29983,29978]} 1. c4 {[%emt 0:00:01]} e6 {[%emt 0:00:01]} 2. Nf3 {[%emt 0:00:02]} d5 {[%emt 0:00:01]} 3. b3 {[%emt 0:00:01]} Nf6 {[%emt 0:00:02]} 4. Bb2 {[%emt 0:00:01]} c5 {[%emt 0:00:05]} 5. cxd5 {[%emt 0:00:03]} exd5 {[%emt 0:00:16]} 6. g3 {[%emt 0:00:09] A13: English Opening: 1...e6.} Nc6 {[%emt 0:00:13]} 7. Bg2 {[%emt 0:00:02]} d4 {[%emt 0:00:08]} 8. O-O {[%emt 0:00:02] The position is equal.} Be7 {[%emt 0:00:04]} 9. Na3 {[%emt 0:00:03]} O-O {[%emt 0:00:10]} 10. e3 {[%emt 0:00:01]} dxe3 {[%emt 0:00:10]} 11. dxe3 {[%emt 0:00:02]} Bf5 {[%emt 0:00:03]} 12. Nc4 {[%emt 0:00:05] [#]} Qc7 $146 {[%emt 0:00:26]} ({Predecessor:} 12... Be4 13. Nh4 Bxg2 14. Kxg2 b5 15. Qf3 Qc8 16. Nd2 Rd8 17. Rfd1 Qe6 18. Nf5 Ne5 19. Bxe5 Qxe5 {½-½ (43) Adhiban,B (2603)-Praggnanandhaa,R (2676) chess24.com INT 2022}) 13. Nfe5 {[%emt 0:00:18]} Rfd8 {[%emt 0:00:14]} (13... Rad8 $11 14. Qe2 Nxe5 15. Nxe5 a6) 14. Qe2 $16 {[%emt 0:00:21]} Nb4 {[%emt 0:00:32]} 15. Rfd1 {[%emt 0:00:23]} (15. e4 $16 Be6 16. a3) 15... Rxd1+ $14 {[%emt 0:00:03]} 16. Rxd1 {[%emt 0:00:01]} Rd8 {[%emt 0:00:19]} (16... Be6 $1 $14 {deserves consideration.}) 17. a3 {[%emt 0:00:33]} (17. Rxd8+ $16 Qxd8 18. e4 (18. Bxb7 Nxa2 19. Nc6 Qc7 $16)) 17... Rxd1+ {[%emt 0:00:15]} 18. Qxd1 {[%emt 0:00:01]} Na6 {[%emt 0:00:01]} 19. g4 {[%emt 0:00:13][%cal Bg3g4,Bg4g5][%mdl 32]} Be6 {[%emt 0:00:05]} 20. g5 {[%emt 0:00:08] Inhibits b5.} Ne8 {[%emt 0:00:03]} 21. h4 $36 {[%emt 0:00:41][%mdl 2048] White is pushing.} b5 {[%emt 0:00:04]} 22. Nd2 {[%emt 0:00:02] White is more active.} Bd6 {[%emt 0:00:19]} 23. f4 {[%emt 0:00:09]} c4 {[%emt 0:00:02]} 24. bxc4 {[%emt 0:00:05]} bxc4 {[%emt 0:00:01] [#]} 25. Qc2 {[%emt 0:00:02] Inhibits c3.} (25. Ndxc4 $1 $16 {[%mdl 512] Hoping for Qa4.} Bf8 26. Qa4) 25... Qa5 {[%emt 0:00:10]} (25... Bc5 $14) 26. Nexc4 {[%emt 0:00:20]} Qc5 {[%emt 0:00:01]} (26... Bxc4 $16 27. Nxc4 Qe1+ 28. Bf1 Bc5) 27. Bd4 {[%emt 0:00:03]} Qc7 {[%emt 0:00:04]} 28. Qc3 {[%emt 0:00:02]} (28. Qa4 $18 {and White stays clearly on top.} Qc8 29. Bxa7) 28... Nc5 $2 {[%emt 0:00:03][%mdl 8192] A mistake that costs the game.} (28... Bf8 $16 29. Bf1 Nc5) 29. Nxd6 $18 {[%emt 0:00:01]} Qxd6 {[%emt 0:00:02]} 30. Qxc5 {[%emt 0:00:00]} Qd7 {[%emt 0:00:01]} 31. Ne4 {[%emt 0:00:02]} Qa4 {[%emt 0:00:02]} 32. Kf2 {[%emt 0:00:03]} Qb3 {[%emt 0:00:02]} 33. Qc6 {[%emt 0:00:04][%cal Rc6e8] [#]} Qa2+ {[%emt 0:00:02]} 34. Kg3 {[%emt 0:00:01] Weighted Error Value: White=0.22 (precise) /Black=0.49} 1-0

[Event "4th Tata Steel India Blitz Women 2022"]
[Site "Kolkota"]
[Date "2022.12.04"]
[Round "12.3"]
[White "Harika, Dronavalli"]
[Black "Ushenina, Anna"]
[Result "1-0"]
[ECO "A13"]
[WhiteElo "2507"]
[BlackElo "2454"]
[Annotator "TA"]
[PlyCount "133"]
[EventDate "2022.11.29"]
[EventType "tourn"]
[EventCountry "IND"]
[SourceTitle "playchess.com"]
[Source "ChessBase"]
[SourceQuality "1"]
[TimeControl "180+2"]

{[%evp 9,133,0,19,13,63,48,56,56,34,37,69,64,85,101,88,95,182,126,152,134,150,167,164,150,156,156,160,167,171,154,166,159,162,164,259,65,54,72,69,70,68,68,55,37,50,46,58,45,95,83,110,76,112,77,121,101,116,83,83,83,83,76,76,76,76,39,83,83,83,83,83,83,83,83,83,83,69,83,83,83,84,84,1516,1512,1446,1146,1080,1030,806,743,1576,1556,1565,1558,1485,1154,1461,1447,1367,1323,1122,1263,1079,932,12833,12832,12834,12835,12835,12834,12837,12837,12837,12837,12841,12842,12846,12847,12850,12850,12850,27999,27999,27995,27996,27995]} 1. c4 {[%emt 0:00:01]} e6 {[%emt 0:00:01]} 2. g3 {[%emt 0:00:02]} d5 {[%emt 0:00:01]} 3. Bg2 {[%emt 0:00:01]} dxc4 {[%emt 0:00:02]} 4. Qa4+ {[%emt 0:00:03]} c6 {[%emt 0:00:01]} 5. Qxc4 {[%emt 0:00:02]} c5 {[%emt 0:00:01]} 6. Nf3 {[%emt 0:00:05] A13: English Opening: 1...e6.} Bd7 {[%emt 0:00:13]} (6... Nc6 $11) 7. O-O {[%emt 0:00:09] White is more active.} Bc6 {[%emt 0:00:02] [#]} 8. Nc3 $146 {[%emt 0:00:02] White is slightly better.} ({Predecessor:} 8. b3 Nd7 9. Bb2 Ngf6 10. d3 Be7 11. Qc2 O-O 12. Nbd2 Rc8 13. Rac1 b6 14. Rfd1 {0-1 (43) Badelka,O (2399)-Ushenina,A (2416) Moscow 2019}) 8... Nd7 {[%emt 0:00:07]} 9. e4 {[%emt 0:00:05]} Rc8 {[%emt 0:00:22]} 10. Qe2 {[%emt 0:00:06]} Ngf6 {[%emt 0:00:09]} 11. d4 {[%emt 0:00:05]} cxd4 {[%emt 0:00:19]} 12. Nxd4 {[%emt 0:00:02]} Ne5 {[%emt 0:00:14] [#]} (12... Bb4 $16 {might work better.}) 13. Nxc6 {[%emt 0:00:07]} (13. Rd1 $1 $18 {And now Nxc6 would win.} Qb6 14. Bf4) 13... Nxc6 {[%emt 0:00:12]} 14. Rd1 {[%emt 0:00:08]} Nd4 {[%emt 0:00:21]} 15. Qf1 {[%emt 0:00:22] Hoping for Be3.} e5 {[%emt 0:00:02]} 16. Be3 {[%emt 0:00:01]} Bc5 {[%emt 0:00:07]} 17. Bxd4 {[%emt 0:00:46]} Bxd4 {[%emt 0:00:02]} 18. Nb5 {[%emt 0:00:01] Threatens to win with Nxd4.} O-O {[%emt 0:00:21]} 19. Nxd4 {[%emt 0:00:02]} exd4 {[%emt 0:00:00]} 20. e5 {[%emt 0:00:01][%csl LRb7,LRf6]} Ng4 {[%emt 0:00:08]} 21. Qe2 {[%emt 0:00:05]} Qg5 {[%emt 0:00:05]} (21... h5 $142) 22. Bh3 $2 {[%emt 0:00:20] [#]} (22. Bxb7 Rcd8 $16) ({Better is} 22. f4 $18 Qf5 23. Rxd4) 22... h5 $14 {[%emt 0:00:25]} 23. Bxg4 {[%emt 0:00:02]} Qxg4 {[%emt 0:00:05]} 24. Qxg4 {[%emt 0:00:01]} hxg4 {[%emt 0:00:01]} 25. Rxd4 {[%emt 0:00:04][%mdl 4096] Endgame KRR-KRR} Rc2 {[%emt 0:00:01]} 26. b3 {[%emt 0:00:17]} Re8 {[%emt 0:00:05]} 27. Rxg4 {[%emt 0:00:02]} Rxe5 {[%emt 0:00:02]} 28. Rf4 {[%emt 0:00:05] Prevents Rf5.} Ree2 {[%emt 0:00:03]} (28... g5 $14 29. Rf3 g4) 29. Rd1 {[%emt 0:00:07]} Re7 {[%emt 0:00:17]} 30. Ra4 {[%emt 0:00:27]} a6 {[%emt 0:00:02]} 31. Rd3 {[%emt 0:00:02]} g6 {[%emt 0:00:04]} 32. h4 {[%emt 0:00:03]} Kg7 {[%emt 0:00:01]} 33. Rf3 {[%emt 0:00:01]} Rb2 {[%emt 0:00:03]} 34. Kg2 {[%emt 0:00:03]} Rc2 {[%emt 0:00:01]} 35. a3 {[%emt 0:00:04]} Ra2 {[%emt 0:00:02]} 36. Ra5 {[%emt 0:00:04]} Re6 {[%emt 0:00:02]} 37. b4 {[%emt 0:00:01]} Rd6 {[%emt 0:00:07]} 38. Re5 {[%emt 0:00:03]} Rf6 {[%emt 0:00:02]} 39. Rxf6 {[%emt 0:00:02]} Kxf6 $16 {[%emt 0:00:00] KR-KR} 40. Re3 {[%emt 0:00:01]} b6 {[%emt 0:00:02][%cal Bb7b6,Bb6a5,Ba5a4][%mdl 32]} 41. g4 {[%emt 0:00:02]} a5 {[%emt 0:00:01]} 42. bxa5 {[%emt 0:00:07]} bxa5 {[%emt 0:00:00]} 43. Kg3 {[%emt 0:00:04]} a4 {[%emt 0:00:01]} 44. f3 {[%emt 0:00:00]} Kg7 {[%emt 0:00:02]} 45. Kf4 {[%emt 0:00:02]} Rb2 $2 {[%emt 0:00:05][%mdl 8192] Loses the game.} (45... Ra1 $16) 46. Re4 $18 {[%emt 0:00:01]} Rh2 {[%emt 0:00:01]} 47. Kg3 {[%emt 0:00:01]} (47. Rxa4 Rxh4 48. Ra6 Rh8 $18) 47... Rh1 {[%emt 0:00:02]} 48. Rxa4 {[%emt 0:00:01]} Rg1+ {[%emt 0:00:01]} 49. Kf2 {[%emt 0:00:04]} Rh1 {[%emt 0:00:01]} 50. g5 {[%emt 0:00:01]} Ra1 {[%emt 0:00:01]} 51. Kg3 {[%emt 0:00:01]} Ra2 {[%emt 0:00:01]} 52. Kf4 {[%emt 0:00:02]} Rb2 {[%emt 0:00:02]} 53. Ke3 {[%emt 0:00:02]} Rb3+ {[%emt 0:00:01]} 54. Ke4 {[%emt 0:00:02]} Rc3 {[%emt 0:00:01]} 55. f4 {[%emt 0:00:07]} Rh3 {[%emt 0:00:01]} 56. Ra8 {[%emt 0:00:05]} Rxh4 {[%emt 0:00:02]} 57. a4 {[%emt 0:00:01]} Rh3 {[%emt 0:00:02]} 58. a5 {[%emt 0:00:01]} Ra3 {[%emt 0:00:01]} 59. a6 {[%emt 0:00:01]} Ra2 {[%emt 0:00:01]} 60. Kd5 {[%emt 0:00:01]} (60. a7 Ra5 61. Kd4 Ra1 $16) 60... Re2 {[%emt 0:00:05]} 61. Kc5 {[%emt 0:00:05]} ({Less strong is} 61. a7 Ra2 62. Ke5 Ra5+ 63. Ke4 Ra4+ 64. Ke5 Ra5+ 65. Kd4 Ra3 $18) 61... Re4 {[%emt 0:00:05]} 62. Rd8 {[%emt 0:00:04]} Rxf4 {[%emt 0:00:04]} 63. a7 {[%emt 0:00:01]} Ra4 {[%emt 0:00:02]} 64. a8=Q {[%emt 0:00:02]} ({Not} 64. a8=B Ra5+ 65. Kd4 Rxg5 $14) 64... Rxa8 {[%emt 0:00:01]} 65. Rxa8 {[%emt 0:00:01]} f5 {[%emt 0:00:02]} 66. gxf6+ {[%emt 0:00:01]} Kxf6 {[%emt 0:00:01]} 67. Kd4 {[%emt 0:00:01] Weighted Error Value: White=0.16 (very precise) /Black=0.18 (very precise)} 1-0

[Event "4th Tata Steel India Blitz Women 2022"]
[Site "Kolkota"]
[Date "2022.12.04"]
[Round "12.4"]
[White "Koneru, Humpy"]
[Black "Muzychuk, Mariya"]
[Result "1-0"]
[ECO "D43"]
[WhiteElo "2574"]
[BlackElo "2528"]
[Annotator "TA"]
[PlyCount "43"]
[EventDate "2022.11.29"]
[EventType "tourn"]
[EventCountry "IND"]
[SourceTitle "playchess.com"]
[Source "ChessBase"]
[SourceQuality "1"]
[TimeControl "180+2"]

{[%evp 16,43,10,0,-2,-14,64,56,68,62,57,58,68,69,58,63,143,149,142,139,148,110,179,191,378,372,29985,29985,29985,29970]} 1. d4 {[%emt 0:00:01]} Nf6 {[%emt 0:00:00]} 2. c4 {[%emt 0:00:03]} e6 3. Nf3 {[%emt 0:00:03]} d5 {[%emt 0:00:01]} 4. Nc3 {[%emt 0:00:03]} c6 {[%emt 0:00:01]} 5. Bg5 {[%emt 0:00:04][%cal Bc1g5,Bg5h4,Bh4g3][%mdl 32]} h6 {[%emt 0:00:01]} 6. Bh4 {[%emt 0:00:02]} dxc4 {[%emt 0:00:05]} 7. e4 {[%emt 0:00:03]} g5 {[%emt 0:00:01]} 8. Bg3 {[%emt 0:00:02]} b5 {[%emt 0:00:02]} 9. Be2 {[%emt 0:00:04]} Bg7 {[%emt 0:00:07] [#] D43: Semi-Slav: 5 Bg5 h6.} 10. h3 $1 $146 {[%emt 0:00:30][%mdl 8] A relevant novelty.} ({Predecessor:} 10. O-O O-O 11. a4 b4 12. e5 Nh5 13. Ne4 c5 14. Rc1 Nxg3 15. hxg3 g4 16. Nf6+ Bxf6 17. exf6 {½-½ (41) Kozul,Z (2621)-Saric,I (2693) Vodice 2022}) 10... b4 {[%emt 0:00:21] Prevents e5.} (10... O-O $11) 11. e5 $1 $14 {[%emt 0:00:14]} bxc3 {[%emt 0:00:29] White is slightly better.} 12. exf6 {[%emt 0:00:03]} Bxf6 {[%emt 0:00:01]} 13. bxc3 {[%emt 0:00:04]} (13. Bxc4 cxb2 14. Rb1 Qa5+ 15. Qd2 Qxd2+ 16. Kxd2 Nd7 $15) 13... Nd7 {[%emt 0:00:24]} 14. Bxc4 {[%emt 0:00:30]} c5 $1 {[%emt 0:00:00]} 15. O-O {[%emt 0:00:11]} cxd4 {[%emt 0:00:09]} (15... O-O $14) 16. Nxd4 $16 {[%emt 0:00:17] [#] aiming for Bd6.} ({Don't play} 16. cxd4 $6 O-O $14) 16... O-O {[%emt 0:00:09]} 17. Qf3 {[%emt 0:00:17] And now Rfd1 would win.} Nb6 {[%emt 0:00:23][%cal Of6d4]} 18. Bd3 {[%emt 0:00:01] Strongly threatening Qe4. White is much more active. The black rooks are badly placed.} Bxd4 {[%emt 0:00:28]} (18... Bg7 $16 {was worth a try.}) 19. cxd4 $40 {[%emt 0:00:05][%mdl 128] White attacks with force.} (19. Qe4 f5 20. Qxd4 Qxd4 21. cxd4 f4 $11) 19... Bd7 $2 {[%emt 0:00:03] [#]} (19... f5 {might work better.}) 20. Qh5 {[%emt 0:00:15]} ({Not} 20. Bd6 Bb5 $18) 20... f5 $2 {[%emt 0:00:14]} (20... Qf6 $18 21. Be5 Qe7 22. Qxh6 f6) 21. Qg6+ {[%emt 0:00:02]} ({Weaker is} 21. Qxh6 Qf6 22. Qxf6 Rxf6 $18) 21... Kh8 {[%emt 0:00:01]} 22. Be5+ {[%emt 0:00:02] White took control after the opening.   Weighted Error Value: White=0.07 (flawless) /Black=0.79} 1-0

[Event "4th Tata Steel India Blitz Women 2022"]
[Site "Kolkota"]
[Date "2022.12.04"]
[Round "12.5"]
[White "Muzychuk, Anna"]
[Black "Savitha Shri B"]
[Result "1-0"]
[ECO "A03"]
[WhiteElo "2525"]
[BlackElo "2411"]
[Annotator "TA"]
[PlyCount "61"]
[EventDate "2022.11.29"]
[EventType "tourn"]
[EventCountry "IND"]
[SourceTitle "playchess.com"]
[Source "ChessBase"]
[SourceQuality "1"]
[TimeControl "180+2"]

{[%evp 10,61,8,6,29,-5,8,13,20,-20,0,-6,2,-53,0,2,63,65,68,54,73,0,0,-159,-153,-164,-165,-224,-61,-162,-154,-168,-163,-235,-207,-435,-306,-302,-173,-462,289,289,449,-204,29987,29988,29994,29995,29996,29980,29980,29981,29979,29980]} 1. f4 {[%emt 0:00:00]} Nf6 {[%emt 0:00:02]} 2. Nf3 {[%emt 0:00:01]} d5 {[%emt 0:00:03]} 3. g3 {[%emt 0:00:01]} c5 {[%emt 0:00:04]} 4. Bg2 {[%emt 0:00:01]} Nc6 {[%emt 0:00:03]} 5. O-O {[%emt 0:00:02]} e6 {[%emt 0:00:15]} 6. d3 {[%emt 0:00:02]} Qb6 {[%emt 0:00:32] A03: Bird's Opening with 1...d5.} 7. Qe1 {[%emt 0:00:20] [#]} c4+ $146 {[%emt 0:00:16]} ({Predecessor:} 7... Nb4 8. Na3 Bd7 9. c3 Nc6 10. e4 O-O-O 11. e5 Ne8 12. Ng5 f6 13. Nf7 Rg8 14. Nxd8 Kxd8 {1-0 (30) Khudovekov,M (1624)-Maciuityte,M (1456) Klaipeda 2013}) 8. Kh1 {[%emt 0:00:17]} cxd3 {[%emt 0:00:26] The position is equal.} 9. cxd3 {[%emt 0:00:01]} Bb4 {[%emt 0:00:04]} 10. Bd2 {[%emt 0:00:45]} Ng4 {[%emt 0:00:01]} 11. e4 (11. Bxb4 $11 Qxb4 12. Qxb4 Nxb4 13. Rc1) 11... dxe4 {[%emt 0:00:11]} (11... Bc5 $15) 12. dxe4 $11 {[%emt 0:00:10]} O-O {[%emt 0:00:10]} (12... Bxd2 $11 13. Qxd2 O-O) 13. Nc3 $1 $14 {[%emt 0:00:15]} Rd8 {[%emt 0:00:12]} 14. h3 {[%emt 0:00:08]} Bxc3 {[%emt 0:00:50]} 15. Bxc3 {[%emt 0:00:29]} (15. bxc3 $16 Nf6 16. e5) 15... Ne3 $36 {[%emt 0:00:09][%mdl 2048] Black is pushing. Pair of Knights!} 16. Qe2 {[%emt 0:00:15] [#] Inhibits Nc2.} Nxf1 $17 {[%emt 0:00:00]} 17. Rxf1 {[%emt 0:00:00]} Bd7 {[%emt 0:00:27]} 18. Nh4 {[%emt 0:00:11]} (18. Re1 $142) 18... Ne7 $2 {[%emt 0:00:00]} ({Black should try} 18... Nd4 $19 19. Qg4 f6) 19. Qh5 {[%emt 0:00:22]} (19. Qg4 $1 $15 Ng6 20. f5) 19... Qb5 {[%emt 0:00:00]} 20. f5 {[%emt 0:00:11]} exf5 {[%emt 0:00:00] aiming for ...f6.} 21. exf5 {[%emt 0:00:02]} (21. Qg5 {might work better.} Ng6 22. a4) 21... Bc6 {[%emt 0:00:00]} 22. Rf4 {[%emt 0:00:06]} (22. Qg4 Bxg2+ 23. Kh2) 22... Bxg2+ {[%emt 0:00:00]} 23. Nxg2 {[%emt 0:00:14]} Qc6 {[%emt 0:00:00]} (23... f6 $142 24. Kh2 Rd7) 24. Bxg7 $2 {[%emt 0:00:00]} (24. f6 Rd5 25. Qg4) 24... Kxg7 $4 {[%emt 0:00:00][%mdl 8192]} ({Don't blunder} 24... Rd2 $2 25. Qf3 Qxf3 26. Rxf3 Kxg7 27. f6+ Kf8 28. fxe7+ Kxe7 29. Ne3 $19) (24... Qc1+ $19 {and all is fine.} 25. Kh2 Rd1) 25. f6+ $18 {[%emt 0:00:00]} Kh8 {[%emt 0:00:02] [#]} (25... Qxf6 {was necessary.} 26. Rxf6 Kxf6 27. Qh4+ (27. Qxh7 Rd1+ 28. Kh2 Ng6 $14) 27... Ke6 28. Nf4+ (28. Qxh7 Ng6 $16) 28... Kd7 29. Qxh7 Ke8 30. Qh8+ Kd7) 26. fxe7 $4 {[%emt 0:00:00][%mdl 8192]} (26. Rh4 $1 $18 {[%csl Gh4][%cal Rh5h7]} Qc2 27. fxe7 Qd1+ 28. Kh2 Qxh5 29. exd8=Q+ Rxd8 30. Rxh5) 26... Rd6 $4 {[%emt 0:00:03][%mdl 8192]} (26... Rd2 $19 27. Qe5+ f6 28. Qxf6+ Qxf6 29. Rxf6 Kg8) 27. Rxf7 {[%emt 0:00:00][%csl Gf7][%cal Rh5h7,Bf4f7,Bf7f8,Bf8a8][%mdl 32] White mates.} Qc1+ {[%emt 0:00:02]} 28. Kh2 {[%emt 0:00:00][%csl Gf7][%cal Rh5h7]} Qh6 {[%emt 0:00:02]} 29. Qxh6 {[%emt 0:00:00]} Rxh6 {[%emt 0:00:01]} 30. Rf8+ {[%emt 0:00:00]} Kg7 {[%emt 0:00:02]} 31. Rxa8 {[%emt 0:00:02] Weighted Error Value: White=0.82/Black=0.79} 1-0

[Event "4th Tata Steel India Blitz Women 2022"]
[Site "Kolkota"]
[Date "2022.12.04"]
[Round "13.1"]
[White "Vaishali, Rameshbabu"]
[Black "Muzychuk, Anna"]
[Result "0-1"]
[ECO "D78"]
[WhiteElo "2454"]
[BlackElo "2525"]
[Annotator "TA"]
[PlyCount "94"]
[EventDate "2022.11.29"]
[EventType "tourn"]
[EventCountry "IND"]
[SourceTitle "playchess.com"]
[Source "ChessBase"]
[SourceQuality "1"]
[TimeControl "180+2"]

{[%evp 11,94,15,21,0,0,0,17,16,15,17,26,27,27,7,18,8,13,21,31,27,32,31,43,24,42,0,32,24,49,33,259,26,173,-20,-29,-109,-94,-275,-177,-178,-200,-239,-235,-529,-526,-523,-510,-488,-392,-524,-410,-393,-384,-375,-370,-652,-152,-135,-128,-632,-537,-539,-503,-503,-489,-29965,-29957,-29975,-29976,-29976,-29977,-29981,-29982,-29981,-29980,-29983,-29984,-29986,-29985,-29987,-29987,-29989,-29990,-29998,-29997]} 1. Nf3 {[%emt 0:00:04]} d5 {[%emt 0:00:00]} 2. g3 {[%emt 0:00:01]} g6 {[%emt 0:00:01]} 3. Bg2 {[%emt 0:00:03]} Bg7 {[%emt 0:00:01]} 4. d4 {[%emt 0:00:01]} Nf6 {[%emt 0:00:02]} 5. c4 {[%emt 0:00:02]} c6 {[%emt 0:00:01]} 6. O-O {[%emt 0:00:02]} O-O {[%emt 0:00:01]} 7. a4 {[%emt 0:00:02] 7.Nc3 is a critical line. D78: Fianchetto Grünfeld: 6 0-0 c6.} a5 {[%emt 0:00:03]} 8. Na3 {[%emt 0:00:30]} Na6 {[%emt 0:00:09]} 9. cxd5 {[%emt 0:00:13] The position is equal.} cxd5 {[%emt 0:00:03]} 10. Qb3 {[%emt 0:00:04]} Nb4 {[%emt 0:00:45]} 11. Bd2 {[%emt 0:00:20]} Nc6 {[%emt 0:00:01]} 12. Nb5 {[%emt 0:00:20]} Bf5 {[%emt 0:00:18] [#]} 13. Rac1 $146 {[%emt 0:00:12]} ({Predecessor:} 13. Rfc1 Be4 14. e3 Qb6 15. Qd1 Rfc8 16. Ra3 Nb4 17. Rac3 Rxc3 18. Bxc3 Nc6 19. Bh3 Bxf3 20. Qxf3 {½-½ (50) Yuffa,D (2603)-Aarav,D (2309) Paris 2022}) 13... Rc8 {[%emt 0:00:15]} 14. Bf4 {[%emt 0:00:43]} Nh5 {[%emt 0:00:15]} 15. Be3 {[%emt 0:00:05]} Nf6 {[%emt 0:00:04]} 16. h3 {[%emt 0:00:01]} Be4 {[%emt 0:00:11]} 17. Bf4 {[%emt 0:00:16]} Qb6 {[%emt 0:00:05]} 18. Be3 {[%emt 0:00:20]} Rfd8 {[%emt 0:00:26]} 19. Ne5 {[%emt 0:00:02][%cal Oe5f7] Threatens to win with Nxf7!} Bxg2 {[%emt 0:00:04]} 20. Kxg2 {[%emt 0:00:02][%cal Oe5f7] Strongly threatening Nxf7!} Ne4 $2 {[%emt 0:00:10] [#]} (20... Qa6 $14) 21. Rfd1 $2 {[%emt 0:00:10]} (21. Nxf7 $1 $18 {[%cal Of2f3][%mdl 512] aiming for f3!} Rd7 22. f3) 21... e6 {[%emt 0:00:17] [#]} (21... Nb4 $11 {and Black has nothing to worry.}) 22. f3 $2 {[%emt 0:00:07]} (22. Nxf7 $1 $18 {[%mdl 512]} Rf8 23. Ne5 Rxf2+ 24. Bxf2 Bxe5 25. Rd3) 22... Nd6 $11 {[%emt 0:00:03]} 23. Rc2 {[%emt 0:00:03] [#]} (23. Rc5 $11) 23... Nxb5 $1 $17 {[%emt 0:00:17]} 24. axb5 $2 {[%emt 0:00:02]} (24. Rdc1 $17) 24... Nb4 {[%emt 0:00:03]} 25. Rxc8 {[%emt 0:00:03]} Rxc8 26. Nd3 {[%emt 0:00:02]} Qxb5 {[%emt 0:00:03]} 27. Nxb4 $2 {[%emt 0:00:02]} (27. Ra1) 27... Qxe2+ $19 {[%emt 0:00:03]} ({Stronger than} 27... axb4 28. Kf1 $17) ({And not} 27... Qxb4 28. Qxb4 axb4 29. Ra1 $17) 28. Bf2 {[%emt 0:00:01]} axb4 {[%emt 0:00:01]} 29. Re1 {[%emt 0:00:02]} Qc4 {[%emt 0:00:02]} ({But not} 29... Qd2 $2 30. Rd1 Qe2 31. Re1 $19) 30. Qe3 {[%emt 0:00:03]} Qa2 {[%emt 0:00:05]} 31. Re2 {[%emt 0:00:01]} Qb1 {[%emt 0:00:01]} 32. Qb3 {[%emt 0:00:02]} Rc4 {[%emt 0:00:05]} 33. Qa4 $2 {[%emt 0:00:02]} (33. Rd2) 33... Bxd4 $2 {[%emt 0:00:06]} (33... Qd3 $19 {has better winning chances.} 34. Rxe6 fxe6 35. Qe8+ Bf8 36. Qxe6+ Kg7 37. Qe5+ Kf7 38. Qxd5+ Ke7 39. Qxb7+ Ke6) 34. Bxd4 $17 {[%emt 0:00:03]} Rxd4 $19 {[%emt 0:00:00][%mdl 4096] Endgame KQR-KQR} 35. Qe8+ $2 {[%emt 0:00:02][%mdl 8192]} (35. Qa7 $17 Rc4 36. Qb8+ Kg7 37. Qe5+ Kh6 38. Qh8) 35... Kg7 {[%emt 0:00:01] ...Rd1 is the strong threat.} 36. Qb8 {[%emt 0:00:02] Black must now prevent Qe5+.} Qf5 {[%emt 0:00:05]} 37. g4 {[%emt 0:00:01]} Qf4 {[%emt 0:00:02]} 38. Qxb7 {[%emt 0:00:02]} (38. Qxf4 $19 Rxf4 39. Kg3) 38... Rd2 {[%emt 0:00:02] Black mates.} 39. Rxd2 {[%emt 0:00:03]} Qxd2+ {[%emt 0:00:01] KQ-KQ} 40. Kg3 {[%emt 0:00:01]} Qxb2 {[%emt 0:00:01]} 41. Qc7 {[%emt 0:00:01]} Qc3 {[%emt 0:00:02]} 42. Qa5 {[%emt 0:00:02]} Qe5+ {[%emt 0:00:02]} 43. Kg2 {[%emt 0:00:00]} b3 {[%emt 0:00:01]} 44. Qb5 {[%emt 0:00:01]} b2 {[%emt 0:00:02]} 45. h4 {[%emt 0:00:07]} Qc3 46. Kg3 {[%emt 0:00:00]} Qe1+ {[%emt 0:00:04]} 47. Kf4 {[%emt 0:00:01]} b1=Q {[%emt 0:00:02] Weighted Error Value: White=0.73/Black=0.49} 0-1